[Event "FIDE CB Open 2022"]
[Site "Ceske Budejovice"]
[Date "2022.07.01"]
[Round "1.17"]
[White "Kratochvil, Vit"]
[Black "Simunek, Jakub Simon"]
[Result "1-0"]
[ECO "C00"]
[WhiteElo "2237"]
[BlackElo "1887"]
[Annotator "TA"]
[PlyCount "77"]
[EventDate "2022.07.01"]
[EventType "swiss"]
[EventCountry "CZE"]
[SourceTitle "playchess.com"]
[Source "ChessBase"]
[SourceQuality "1"]
[TimeControl "40/5400+30:1800+30"]

{[%evp 22,77,-43,-47,0,0,0,0,0,0,7,0,58,50,43,50,60,48,62,58,55,-22,40,40,97,53,254,178,191,182,166,27,54,44,64,75,197,196,176,174,261,253,260,270,270,253,740,243,239,250,203,232,213,40,1784,382,1472,702]} 1. e4 {[%emt 0:00:06]} e6 {[%emt 0:00:10]} 2. d3 {[%emt 0:00:54]} d5 {[%emt 0:00:16]} 3. Nd2 {[%emt 0:00:09]} c5 {[%emt 0:00:28]} 4. Ngf3 {[%emt 0:02:37]} Nc6 {[%emt 0:00:19]} 5. g3 {[%emt 0:01:24]} Nf6 {[%emt 0:00:19]} 6. Bg2 {[%emt 0:00:19]} Be7 {[%emt 0:00:18]} 7. O-O {[%emt 0:01:00]} O-O {[%emt 0:00:17]} 8. e5 {[%emt 0:02:47]} Nd7 {[%emt 0:00:12]} 9. Re1 {[%emt 0:00:24]} Qc7 {[%emt 0:00:35]} 10. Qe2 {[%emt 0:00:41]} b5 {[%emt 0:03:06]} 11. h4 {[%emt 0:10:02]} a5 {[%emt 0:01:04]} 12. Nf1 {[%emt 0:03:52]} Nd4 {[%emt 0:02:36] C00: French: Unusual White 2nd moves.} (12... Bb7 $15) 13. Nxd4 $11 {[%emt 0:03:21]} cxd4 {[%emt 0:00:30]} 14. Bf4 {[%emt 0:07:53][%cal Og2d5]} Bb7 {[%emt 0:00:37] The position is equal.} 15. Qg4 {[%emt 0:18:51]} Rfc8 {[%emt 0:05:11]} (15... Qxc2 $2 16. Bh6 g6 17. Rac1 (17. Bxf8 Kxf8 18. Qf4 Qxb2 $11) 17... Qxb2 18. Rc7 $18) 16. Re2 {[%emt 0:01:26] [#]} Bf8 $146 {[%emt 0:03:24]} ({Better is} 16... Kh8 $11) ({Predecessor:} 16... a4 17. a3 Qb6 18. h5 b4 19. axb4 Bxb4 20. Bh6 g6 21. hxg6 hxg6 22. Nh2 a3 23. bxa3 Rxa3 24. Rxa3 Bxa3 25. Bf1 Nf8 26. Qh4 Nh7 27. Ng4 {1-0 (27) Tonnicchi,M (1880)-Ginther,R (2003) IECG email 1999}) 17. Nh2 $1 $14 {[%emt 0:03:42]} Qb6 {[%emt 0:09:28]} 18. Nf3 {[%emt 0:05:55]} Rc7 {[%emt 0:04:17]} 19. Bg5 {[%emt 0:07:57]} Rac8 {[%emt 0:08:12]} 20. Rc1 {[%emt 0:12:47]} b4 {[%emt 0:04:59]} 21. Qxd4 {[%emt 0:10:27]} (21. h5 $14) 21... Bc5 {[%emt 0:01:29]} (21... Qxd4 $11 22. Nxd4 Ba6) 22. Qg4 {[%emt 0:00:19]} Ba6 {[%emt 0:04:14]} (22... Kh8 $1 $14) 23. Rd2 $40 {[%emt 0:02:25][%mdl 128] White has some attack.} Bxd3 $2 {[%emt 0:11:18]} 24. Rxd3 {[%emt 0:00:48] And now Rd2 would win.} Bxf2+ {[%emt 0:00:12]} 25. Kh2 {[%emt 0:01:29] Threatens to win with Bh6.} Rc4 {[%emt 0:06:09]} 26. Qh3 {[%emt 0:01:10]} (26. Bf4 $18) 26... h6 {[%emt 0:08:36]} 27. Bf4 {[%emt 0:00:27][%cal Od3d5] aiming for Rxd5!} Rxf4 {[%emt 0:00:27]} 28. gxf4 {[%emt 0:00:06]} Nc5 {[%emt 0:00:03]} (28... Be3 $16 29. Rf1 (29. Rxe3 Qxe3 30. Re1 Qxf4+ 31. Qg3 Qxg3+ 32. Kxg3 Rxc2 $15) 29... Bxf4+ 30. Kh1 Nc5) 29. Ne1 $18 {[%emt 0:01:01] Black must now prevent Rxd5.} (29. Rxd5 Ne4 30. Nd4 Rc4) 29... Nxd3 {[%emt 0:06:15]} 30. Nxd3 {[%emt 0:00:16]} Be3 {[%emt 0:00:40]} (30... a4 $142 31. f5 Rc4 32. Nxf2 Qxf2) 31. Re1 {[%emt 0:00:39]} Bd2 {[%emt 0:02:05]} 32. Re2 {[%emt 0:00:36]} Rxc2 {[%emt 0:00:09]} 33. f5 {[%emt 0:00:30] Hoping for fxe6.} Qd4 $2 {[%emt 0:03:02]} (33... a4 34. fxe6 Qxe6) 34. Qg3 $2 {[%emt 0:00:29]} (34. fxe6 {Strongly threatening e7.} fxe6 35. Qxe6+ Kh8 36. Bxd5 $1 Qxh4+ 37. Kg2) 34... exf5 {[%emt 0:00:54]} 35. e6 {[%emt 0:00:27]} fxe6 {[%emt 0:12:59]} 36. Rxe6 {[%emt 0:00:02] Dancing on a razor blade.} Rc4 {[%emt 0:01:04] [#]} 37. Re2 $2 {[%emt 0:01:03]} (37. h5 $1 $18 {White threatens Re8+ and mate.} Qh4+ 38. Qxh4 Rxh4+ 39. Kg1) 37... f4 $2 {[%emt 0:00:59][%mdl 8192]} (37... Qxh4+ $14 38. Qxh4 Rxh4+ 39. Kg3 (39. Kg1 Bf4 $16) 39... Bg5) 38. Qf3 $2 {[%emt 0:00:23]} (38. Qg6 {[%cal Re2e8]} Be3 39. Qe6+ Kh8 40. Bxd5 Qxd5 41. Qxd5) 38... Kh8 $2 {[%emt 0:01:52]} (38... Be3 39. Qxd5+ (39. Rxe3 $2 fxe3 40. Qxd5+ Kh8 $19) 39... Kf8 40. Qa8+ Ke7) 39. Rxd2 {[%emt 0:00:13] Weighted Error Value: White=0.79/Black=0.46} (39. Re8+ $142 Kh7 40. Qh3) 1-0

[Event "FIDE CB Open 2022"]
[Site "Ceske Budejovice"]
[Date "2022.07.01"]
[Round "1.18"]
[White "Shirinyan, Daniel"]
[Black "Matras, Ondrej"]
[Result "1/2-1/2"]
[ECO "D02"]
[WhiteElo "1876"]
[BlackElo "2229"]
[Annotator "RC"]
[PlyCount "194"]
[EventDate "2022.07.01"]
[EventType "swiss"]
[EventCountry "CZE"]
[SourceTitle "playchess.com"]
[Source "ChessBase"]
[SourceQuality "1"]
[TimeControl "40/5400+30:1800+30"]

1. Nf3 {[%emt 0:00:08]} d5 {[%emt 0:00:04]} 2. g3 {[%emt 0:00:10]} Nc6 {[%emt 0:00:14]} 3. d4 {[%emt 0:02:28]} Bg4 {[%emt 0:00:15]} 4. Nbd2 {[%emt 0:01:53]} Qd7 {[%emt 0:00:27]} 5. Bg2 {[%emt 0:04:08]} O-O-O {[%emt 0:01:43]} 6. c3 {[%emt 0:03:03]} e5 {[%emt 0:04:30]} 7. Nxe5 {[%emt 0:13:33]} Nxe5 {[%emt 0:00:46]} 8. dxe5 {[%emt 0:00:04]} Bc5 {[%emt 0:02:59]} 9. b4 {[%emt 0:05:53]} Bb6 {[%emt 0:00:06]} 10. Nb3 {[%emt 0:03:37]} Ne7 {[%emt 0:01:52]} 11. Bf4 {[%emt 0:20:46]} Rhe8 {[%emt 0:05:59]} 12. h3 {[%emt 0:05:06]} Bf5 {[%emt 0:05:02]} 13. g4 {[%emt 0:00:31]} Bg6 {[%emt 0:07:34]} 14. a4 {[%emt 0:03:55]} a6 {[%emt 0:01:18]} 15. O-O {[%emt 0:01:51]} h5 {[%emt 0:04:28]} 16. e4 {[%emt 0:01:28]} Bxe4 {[%emt 0:04:38]} 17. Bxe4 {[%emt 0:00:48]} dxe4 {[%emt 0:00:02]} 18. Qxd7+ {[%emt 0:01:32]} Rxd7 {[%emt 0:00:04]} 19. a5 {[%emt 0:03:04]} Ba7 {[%emt 0:05:17]} 20. Be3 {[%emt 0:00:17]} Bxe3 {[%emt 0:01:20]} 21. fxe3 {[%emt 0:00:07]} Ng6 {[%emt 0:01:59]} 22. Nc5 {[%emt 0:00:43]} Rde7 {[%emt 0:00:27]} 23. e6 {[%emt 0:00:47]} fxe6 {[%emt 0:00:14]} 24. g5 {[%emt 0:04:03]} Nh4 {[%emt 0:01:51]} 25. Nxe4 {[%emt 0:02:11]} Rd7 {[%emt 0:01:23]} 26. Rad1 {[%emt 0:02:35]} Nf5 {[%emt 0:12:00]} 27. Kf2 {[%emt 0:00:51]} Rd5 {[%emt 0:04:25]} 28. Rxd5 {[%emt 0:16:33]} exd5 {[%emt 0:00:02]} 29. Nc5 {[%emt 0:00:34]} Rxe3 {[%emt 0:03:58]} 30. Kg1 {[%emt 0:00:28]} g6 {[%emt 0:01:01]} 31. Rd1 {[%emt 0:00:26]} c6 {[%emt 0:00:43]} 32. Rd3 {[%emt 0:00:29]} Re5 {[%emt 0:13:55]} 33. Kf2 {[%emt 0:00:32]} Nd6 {[%emt 0:01:13]} 34. Re3 {[%emt 0:01:23]} Rxg5 {[%emt 0:02:05]} 35. Re6 {[%emt 0:00:14]} Ne4+ {[%emt 0:05:47]} 36. Nxe4 {[%emt 0:00:07]} dxe4 {[%emt 0:00:03]} 37. Rxe4 {[%emt 0:00:15]} Kd7 {[%emt 0:00:38]} 38. Kf3 {[%emt 0:00:53]} Rd5 {[%emt 0:01:43]} 39. Ke3 {[%emt 0:00:59]} Kd6 {[%emt 0:01:23]} 40. Rf4 {[%emt 0:00:05]} Ke6 {[%emt 0:01:35]} 41. h4 {[%emt 0:31:43]} Rf5 {[%emt 0:31:41]} 42. Rd4 {[%emt 0:00:00]} Re5+ {[%emt 0:00:00]} 43. Kf4 {[%emt 0:00:00]} Rd5 {[%emt 0:00:00]} 44. Re4+ {[%emt 0:00:00]} Kf7 {[%emt 0:00:00]} 45. Ke3 {[%emt 0:00:00]} Rd1 {[%emt 0:00:00]} 46. Rf4+ {[%emt 0:00:00]} Ke6 {[%emt 0:00:00]} 47. Re4+ {[%emt 0:00:00]} Kd7 {[%emt 0:00:00]} 48. Ke2 {[%emt 0:00:00]} Rd6 {[%emt 0:00:00]} 49. Ke3 {[%emt 0:00:00]} Re6 {[%emt 0:00:00]} 50. Rxe6 {[%emt 0:00:00]} Kxe6 {[%emt 0:00:00]} 51. Ke4 {[%emt 0:00:00]} Kf6 {[%emt 0:00:00]} 52. Kf4 {[%emt 0:00:00]} Kf7 {[%emt 0:00:00]} 53. Kf3 {[%emt 0:00:00]} Ke7 {[%emt 0:00:00]} 54. Ke3 {[%emt 0:00:00]} Kf8 {[%emt 0:00:00]} 55. Kf2 {[%emt 0:00:00]} Kg8 {[%emt 0:00:13]} 56. Kg2 {[%emt 0:00:00]} Kh8 {[%emt 0:00:46]} 57. Kh2 {[%emt 0:00:00]} Kh7 {[%emt 0:00:20]} 58. Kg3 {[%emt 0:00:00]} Kg7 {[%emt 0:00:35]} 59. Kf3 {[%emt 0:00:00]} Kf7 {[%emt 0:02:07]} 60. Kf4 {[%emt 0:04:20]} Kf6 {[%emt 0:00:24]} 61. c4 {[%emt 0:00:22]} Ke6 {[%emt 0:04:30]} 62. Ke4 {[%emt 0:00:08]} Kd6 {[%emt 0:00:46]} 63. Kf4 {[%emt 0:01:55]} Ke7 {[%emt 0:02:54]} 64. Ke3 {[%emt 0:00:18]} Kf8 {[%emt 0:00:14]} 65. Kf2 {[%emt 0:01:09]} Kg8 {[%emt 0:00:08]} 66. Kg2 {[%emt 0:00:10]} Kh8 {[%emt 0:00:31]} 67. Kh3 {[%emt 0:00:48]} Kh7 {[%emt 0:00:39]} 68. Kg3 {[%emt 0:00:15]} Kg7 {[%emt 0:00:15]} 69. Kf3 {[%emt 0:00:16]} Kf7 {[%emt 0:00:14]} 70. Ke3 {[%emt 0:00:21]} Ke7 {[%emt 0:01:39]} 71. Kf3 {[%emt 0:00:40]} Kd7 {[%emt 0:01:49]} 72. Kf4 {[%emt 0:03:06]} Ke6 {[%emt 0:00:57]} 73. Ke4 {[%emt 0:00:22]} Kf6 {[%emt 0:00:27]} 74. Kf4 {[%emt 0:00:06]} c5 {[%emt 0:00:13]} 75. b5 {[%emt 0:00:27]} Ke6 {[%emt 0:00:28]} 76. Ke4 {[%emt 0:01:05]} Kd6 {[%emt 0:00:09]} 77. Kf4 {[%emt 0:00:21]} Ke6 {[%emt 0:01:13]} 78. Ke4 {[%emt 0:00:06]} Kf6 {[%emt 0:00:16]} 79. Kf4 {[%emt 0:00:06]} Kf7 {[%emt 0:00:42]} 80. Kf3 {[%emt 0:01:01]} Kg7 {[%emt 0:00:16]} 81. Ke4 {[%emt 0:00:43]} Kh7 {[%emt 0:00:30]} 82. Ke3 {[%emt 0:00:36]} Kh6 {[%emt 0:00:17]} 83. Kf4 {[%emt 0:00:04]} Kh7 {[%emt 0:00:37]} 84. Ke3 {[%emt 0:00:19]} Kh8 {[%emt 0:00:09]} 85. Kf3 {[%emt 0:00:35]} Kg8 {[%emt 0:00:09]} 86. Ke3 {[%emt 0:00:35]} Kf8 {[%emt 0:00:28]} 87. Kf2 {[%emt 0:00:40]} Ke8 {[%emt 0:00:25]} 88. Ke2 {[%emt 0:00:24]} Kd7 {[%emt 0:00:12]} 89. Ke3 {[%emt 0:00:54]} Ke7 {[%emt 0:02:10]} 90. Kf3 {[%emt 0:00:47]} Kf7 {[%emt 0:00:27]} 91. Ke3 {[%emt 0:00:33]} Kf6 {[%emt 0:00:19]} 92. Kf4 {[%emt 0:00:05]} g5+ {[%emt 0:00:43]} 93. hxg5+ {[%emt 0:00:06]} Kg6 {[%emt 0:00:01]} 94. b6 {[%emt 0:00:38]} h4 {[%emt 0:00:29]} 95. Kg4 {[%emt 0:00:08]} h3 {[%emt 0:00:02]} 96. Kxh3 {[%emt 0:00:06]} Kxg5 {[%emt 0:00:03]} 97. Kg3 {[%emt 0:00:12]} Kf5 {[%emt 0:00:41]} 1/2-1/2

[Event "FIDE CB Open 2022"]
[Site "Ceske Budejovice"]
[Date "2022.07.01"]
[Round "1.19"]
[White "Kula, Dominik"]
[Black "Koc, Azra Ece"]
[Result "1-0"]
[ECO "C65"]
[WhiteElo "2229"]
[BlackElo "1867"]
[Annotator "RC"]
[PlyCount "89"]
[EventDate "2022.07.01"]
[EventType "swiss"]
[EventCountry "CZE"]
[SourceTitle "playchess.com"]
[Source "ChessBase"]
[SourceQuality "1"]
[TimeControl "40/5400+30:1800+30"]

1. e4 {[%emt 0:00:07]} e5 {[%emt 0:00:05]} 2. Nf3 {[%emt 0:00:10]} Nc6 {[%emt 0:00:09]} 3. Bb5 {[%emt 0:00:14]} Nf6 {[%emt 0:00:09]} 4. d3 {[%emt 0:00:42]} d6 {[%emt 0:00:13]} 5. c3 {[%emt 0:02:35]} Bd7 {[%emt 0:00:05]} 6. Nbd2 {[%emt 0:02:39]} g6 {[%emt 0:00:06]} 7. a4 {[%emt 0:03:26]} Bg7 {[%emt 0:02:37]} 8. a5 {[%emt 0:02:43]} a6 {[%emt 0:01:16]} 9. Bc4 {[%emt 0:00:40]} O-O {[%emt 0:02:10]} 10. Nf1 {[%emt 0:05:56]} h6 {[%emt 0:07:47]} 11. Ne3 {[%emt 0:02:55]} Kh7 {[%emt 0:04:34]} 12. Qb3 {[%emt 0:05:26]} Qe7 {[%emt 0:03:44]} 13. O-O {[%emt 0:01:40]} Nd8 {[%emt 0:08:19]} 14. Re1 {[%emt 0:02:14]} Ne6 {[%emt 0:10:27]} 15. Nd5 {[%emt 0:02:06]} Nxd5 {[%emt 0:02:37]} 16. exd5 {[%emt 0:00:29]} Ng5 {[%emt 0:05:06]} 17. Nxg5+ {[%emt 0:03:58]} hxg5 {[%emt 0:00:03]} 18. Qxb7 {[%emt 0:01:46]} Rfc8 {[%emt 0:16:20]} 19. Qb3 {[%emt 0:05:49]} g4 {[%emt 0:05:07]} 20. d4 {[%emt 0:05:03]} f5 {[%emt 0:05:43]} 21. dxe5 {[%emt 0:00:39]} dxe5 {[%emt 0:00:42]} 22. Qc2 {[%emt 0:06:43]} c6 {[%emt 0:05:38]} 23. Qe2 {[%emt 0:01:29]} cxd5 {[%emt 0:04:41]} 24. Bxd5 {[%emt 0:00:36]} Bc6 {[%emt 0:00:18]} 25. Bxc6 {[%emt 0:01:15]} Rxc6 {[%emt 0:00:03]} 26. f3 {[%emt 0:06:33]} gxf3 {[%emt 0:02:49]} 27. Qxf3 {[%emt 0:00:04]} Rac8 {[%emt 0:01:38]} 28. Be3 {[%emt 0:02:24]} Qf7 {[%emt 0:02:10]} 29. Rad1 {[%emt 0:01:52]} Qe6 {[%emt 0:04:33]} 30. Rd2 {[%emt 0:03:22]} Rd6 {[%emt 0:01:17]} 31. Rxd6 {[%emt 0:00:22]} Qxd6 {[%emt 0:00:02]} 32. Rd1 {[%emt 0:00:08]} Qe7 {[%emt 0:01:58]} 33. Bb6 {[%emt 0:03:27]} e4 {[%emt 0:00:52]} 34. Qe2 {[%emt 0:03:15]} Qb7 {[%emt 0:00:52]} 35. Rd6 {[%emt 0:00:53]} Bf8 {[%emt 0:01:27]} 36. Rd4 {[%emt 0:03:03]} Bg7 {[%emt 0:00:45]} 37. Rd1 {[%emt 0:00:46]} Rc6 {[%emt 0:01:18]} 38. Qe3 {[%emt 0:00:24]} Rc4 {[%emt 0:01:15]} 39. Rd8 {[%emt 0:02:16]} Bh6 {[%emt 0:00:32]} 40. Qh3 {[%emt 0:01:22]} Qf7 {[%emt 0:00:30]} 41. Bd4 {[%emt 0:32:44]} Rxd4 {[%emt 0:30:22]} 42. Rxd4 {[%emt 0:01:09]} Qa2 {[%emt 0:00:38]} 43. Rd7+ {[%emt 0:00:23]} Kg8 {[%emt 0:00:04]} 44. Qxh6 {[%emt 0:00:21]} Qb1+ {[%emt 0:00:10]} 45. Kf2 {[%emt 0:00:05]} 1-0

[Event "FIDE CB Open 2022"]
[Site "Ceske Budejovice"]
[Date "2022.07.01"]
[Round "1.20"]
[White "Kotleska, Roman"]
[Black "Lacina, Adolf"]
[Result "0-1"]
[ECO "C03"]
[WhiteElo "1863"]
[BlackElo "2225"]
[Annotator "RC"]
[PlyCount "80"]
[EventDate "2022.07.01"]
[EventType "swiss"]
[EventCountry "CZE"]
[SourceTitle "playchess.com"]
[Source "ChessBase"]
[SourceQuality "1"]
[TimeControl "40/5400+30:1800+30"]

1. e4 {[%emt 0:00:10]} e6 {[%emt 0:00:48]} 2. d4 {[%emt 0:00:13]} d5 {[%emt 0:00:16]} 3. Nd2 {[%emt 0:00:16]} Be7 {[%emt 0:00:45]} 4. Ngf3 {[%emt 0:01:24]} Nf6 {[%emt 0:00:43]} 5. Bd3 {[%emt 0:03:41]} c5 {[%emt 0:00:31]} 6. exd5 {[%emt 0:01:58]} exd5 {[%emt 0:02:27]} 7. dxc5 {[%emt 0:00:41]} O-O {[%emt 0:01:56]} 8. Nb3 {[%emt 0:00:57]} Bg4 {[%emt 0:02:00]} 9. h3 {[%emt 0:00:59]} Bh5 {[%emt 0:00:37]} 10. Be3 {[%emt 0:03:26]} a5 {[%emt 0:02:05]} 11. a4 {[%emt 0:02:47]} Qc7 {[%emt 0:03:40]} 12. O-O {[%emt 0:12:43]} Nbd7 {[%emt 0:00:54]} 13. g4 {[%emt 0:06:19]} Bg6 {[%emt 0:03:15]} 14. Bxg6 {[%emt 0:00:42]} hxg6 {[%emt 0:00:16]} 15. c3 {[%emt 0:09:35]} Rad8 {[%emt 0:04:22]} 16. Nfd4 {[%emt 0:06:44]} Ne4 {[%emt 0:13:11]} 17. Nb5 {[%emt 0:01:14]} Qb8 {[%emt 0:05:33]} 18. Nxa5 {[%emt 0:07:05]} Bxc5 {[%emt 0:02:25]} 19. Nd4 {[%emt 0:01:08]} Ne5 {[%emt 0:03:43]} 20. Nab3 {[%emt 0:07:36]} Nc4 {[%emt 0:00:52]} 21. Qc1 {[%emt 0:01:40]} Bd6 {[%emt 0:05:42]} 22. Ne2 {[%emt 0:04:45]} Rfe8 {[%emt 0:05:26]} 23. Nbd4 {[%emt 0:03:36]} Nxe3 {[%emt 0:06:36]} 24. fxe3 {[%emt 0:05:51]} Bc5 {[%emt 0:01:46]} 25. Kg2 {[%emt 0:04:42]} Re7 {[%emt 0:04:54]} 26. Rf3 {[%emt 0:03:43]} Qe5 {[%emt 0:03:11]} 27. Ng3 {[%emt 0:03:24]} Bd6 {[%emt 0:04:40]} 28. Nf1 {[%emt 0:00:14]} Ng5 {[%emt 0:03:24]} 29. Rf4 {[%emt 0:00:10]} Rf8 {[%emt 0:01:15]} 30. Nf3 {[%emt 0:00:57]} Nxf3 {[%emt 0:00:37]} 31. Rxf3 {[%emt 0:00:10]} f5 {[%emt 0:00:35]} 32. Qc2 {[%emt 0:01:40]} Ref7 {[%emt 0:00:57]} 33. gxf5 {[%emt 0:01:39]} Rxf5 {[%emt 0:00:21]} 34. Rxf5 {[%emt 0:00:16]} Rxf5 {[%emt 0:00:07]} 35. Rd1 {[%emt 0:01:22]} Qf6 {[%emt 0:02:21]} 36. Qe2 {[%emt 0:01:39]} Rg5+ {[%emt 0:00:47]} 37. Kh1 {[%emt 0:00:21]} Qf5 {[%emt 0:00:15]} 38. Nh2 {[%emt 0:01:32]} Qxh3 {[%emt 0:03:53]} 39. Rd2 {[%emt 0:01:25]} Bxh2 {[%emt 0:00:33]} 40. Qxh2 {[%emt 0:00:35]} Qf3+ {[%emt 0:00:08]} 0-1

[Event "FIDE CB Open 2022"]
[Site "Ceske Budejovice"]
[Date "2022.07.01"]
[Round "1.21"]
[White "Cuhra, Martin"]
[Black "Simacek, Vaclav"]
[Result "1-0"]
[ECO "A22"]
[WhiteElo "2225"]
[BlackElo "1856"]
[Annotator "RC"]
[PlyCount "81"]
[EventDate "2022.07.01"]
[EventType "swiss"]
[EventCountry "CZE"]
[SourceTitle "playchess.com"]
[Source "ChessBase"]
[SourceQuality "1"]
[TimeControl "40/5400+30:1800+30"]

1. c4 {[%emt 0:00:29]} e5 {[%emt 0:00:18]} 2. Nc3 {[%emt 0:00:13]} Nf6 {[%emt 0:00:33]} 3. g3 {[%emt 0:00:09]} d5 {[%emt 0:02:33]} 4. cxd5 {[%emt 0:00:06]} Nxd5 {[%emt 0:00:05]} 5. Bg2 {[%emt 0:00:08]} c6 {[%emt 0:03:58]} 6. d3 {[%emt 0:05:22]} Bc5 {[%emt 0:01:01]} 7. Nxd5 {[%emt 0:06:52]} cxd5 {[%emt 0:00:10]} 8. Qb3 {[%emt 0:00:06]} Be6 {[%emt 0:08:39]} 9. Qxb7 {[%emt 0:03:33]} Nd7 {[%emt 0:00:41]} 10. Nf3 {[%emt 0:05:03]} Rb8 {[%emt 0:00:39]} 11. Qc6 {[%emt 0:03:26]} Rb6 {[%emt 0:01:04]} 12. Qa4 {[%emt 0:01:00]} Rb4 {[%emt 0:02:51]} 13. Qc2 {[%emt 0:02:03]} e4 {[%emt 0:08:07]} 14. Ng5 {[%emt 0:04:45]} e3 {[%emt 0:05:45]} 15. f4 {[%emt 0:02:13]} h6 {[%emt 0:07:30]} 16. Nxe6 {[%emt 0:02:19]} fxe6 {[%emt 0:00:08]} 17. a3 {[%emt 0:07:38]} Rb8 {[%emt 0:01:10]} 18. O-O {[%emt 0:04:19]} O-O {[%emt 0:00:19]} 19. b4 {[%emt 0:01:42]} Bd4 {[%emt 0:00:24]} 20. Bb2 {[%emt 0:00:45]} Qf6 {[%emt 0:00:09]} 21. Bxd4 {[%emt 0:01:34]} Qxd4 {[%emt 0:00:12]} 22. Rac1 {[%emt 0:00:55]} Nf6 {[%emt 0:06:22]} 23. Qc3 {[%emt 0:03:47]} Qb6 {[%emt 0:02:39]} 24. d4 {[%emt 0:04:43]} Rfc8 {[%emt 0:05:42]} 25. Qxe3 {[%emt 0:01:30]} Rc4 {[%emt 0:01:02]} 26. Rxc4 {[%emt 0:04:21]} dxc4 {[%emt 0:00:06]} 27. Rc1 {[%emt 0:00:51]} Rc8 {[%emt 0:02:51]} 28. Bh3 {[%emt 0:01:58]} Kf7 {[%emt 0:03:14]} 29. f5 {[%emt 0:03:43]} exf5 {[%emt 0:04:16]} 30. Bxf5 {[%emt 0:01:13]} Re8 {[%emt 0:05:28]} 31. Qf2 {[%emt 0:01:30]} g6 {[%emt 0:01:47]} 32. Bb1 {[%emt 0:01:08]} Rc8 {[%emt 0:06:45]} 33. e4 {[%emt 0:02:31]} Kg7 {[%emt 0:00:09]} 34. e5 {[%emt 0:01:23]} Nd5 {[%emt 0:03:55]} 35. Rf1 {[%emt 0:02:12]} Qe6 {[%emt 0:00:10]} 36. Be4 {[%emt 0:02:22]} Rc7 {[%emt 0:05:38]} 37. Qf8+ {[%emt 0:05:43]} Kh7 {[%emt 0:00:11]} 38. Qd6 {[%emt 0:00:57]} Qxd6 {[%emt 0:07:55]} 39. exd6 {[%emt 0:00:08]} Rd7 {[%emt 0:00:02]} 40. Bxd5 {[%emt 0:00:32]} c3 {[%emt 0:00:06]} 41. Bc6 {[%emt 0:31:05]} 1-0

[Event "FIDE CB Open 2022"]
[Site "Ceske Budejovice"]
[Date "2022.07.01"]
[Round "1.22"]
[White "Blumel, Otto"]
[Black "Hiermann, Dietmar"]
[Result "1-0"]
[ECO "C56"]
[WhiteElo "1855"]
[BlackElo "2224"]
[Annotator "RC"]
[PlyCount "71"]
[EventDate "2022.07.01"]
[EventType "swiss"]
[EventCountry "CZE"]
[SourceTitle "playchess.com"]
[Source "ChessBase"]
[SourceQuality "1"]
[TimeControl "40/5400+30:1800+30"]

1. e4 {[%emt 0:00:46]} e5 {[%emt 0:00:05]} 2. Nf3 {[%emt 0:00:42]} Nc6 {[%emt 0:00:05]} 3. Bc4 {[%emt 0:00:45]} Bc5 {[%emt 0:00:02]} 4. O-O {[%emt 0:01:02]} Nf6 {[%emt 0:00:27]} 5. d4 {[%emt 0:00:19]} exd4 {[%emt 0:01:42]} 6. e5 {[%emt 0:00:12]} d5 {[%emt 0:00:10]} 7. Bb5 {[%emt 0:00:44]} Ne4 {[%emt 0:01:44]} 8. Nxd4 {[%emt 0:00:32]} Bd7 {[%emt 0:00:38]} 9. Bxc6 {[%emt 0:00:11]} bxc6 {[%emt 0:00:16]} 10. Be3 {[%emt 0:00:34]} Bb6 {[%emt 0:00:24]} 11. Nd2 {[%emt 0:01:31]} Nxd2 {[%emt 0:01:03]} 12. Qxd2 {[%emt 0:00:08]} c5 {[%emt 0:05:50]} 13. Nb3 {[%emt 0:07:07]} d4 {[%emt 0:08:56]} 14. Bg5 {[%emt 0:00:18]} Qc8 {[%emt 0:00:45]} 15. c3 {[%emt 0:01:02]} h6 {[%emt 0:04:30]} 16. Bh4 {[%emt 0:01:47]} Bb5 {[%emt 0:00:37]} 17. Rfd1 {[%emt 0:02:10]} Ba4 {[%emt 0:05:20]} 18. cxd4 {[%emt 0:03:23]} Bxb3 {[%emt 0:02:12]} 19. axb3 {[%emt 0:00:08]} cxd4 {[%emt 0:01:35]} 20. Qb4 {[%emt 0:00:29]} g5 {[%emt 0:01:13]} 21. Bg3 {[%emt 0:00:35]} c5 {[%emt 0:02:40]} 22. Qb5+ {[%emt 0:00:11]} Qd7 {[%emt 0:00:47]} 23. Qxb6 {[%emt 0:00:14]} axb6 {[%emt 0:00:45]} 24. Rxa8+ {[%emt 0:00:06]} Ke7 {[%emt 0:00:06]} 25. Rxh8 {[%emt 0:00:07]} Qe6 {[%emt 0:01:14]} 26. Ra1 {[%emt 0:09:29]} Qxb3 {[%emt 0:08:54]} 27. Rxh6 {[%emt 0:16:38]} d3 {[%emt 0:02:10]} 28. Rd6 {[%emt 0:02:37]} Qxb2 {[%emt 0:02:01]} 29. Ra7+ {[%emt 0:00:06]} Kf8 {[%emt 0:01:41]} 30. h3 {[%emt 0:00:44]} d2 {[%emt 0:04:48]} 31. Rad7 {[%emt 0:00:11]} Qb1+ {[%emt 0:00:35]} 32. Kh2 {[%emt 0:00:10]} c4 {[%emt 0:00:12]} 33. e6 {[%emt 0:27:59]} fxe6 {[%emt 0:00:59]} 34. Be5 {[%emt 0:00:12]} Qf5 {[%emt 0:02:13]} 35. Rd8+ {[%emt 0:00:46]} Kf7 {[%emt 0:00:12]} 36. R6d7+ {[%emt 0:00:06]} 1-0